bitfinex/quotes_ETHUSD_20240702
["timestamp","ask_amount","ask_price","bid_price","bid_amount"]
[1719912873390,2.89947,3448.9,3448.5,0.03577789]
[1719912873583,2.89947,3448.9,3448.3,3.45332]
[1719912873792,2.89947,3448.9,3448.6,0.03577789]
[1719912874174,2.89947,3448.9,3448.3,4.171066]
[1719912874378,2.89947,3448.9,3448.7,0.03577789]
[1719912874580,2.89947,3448.9,3448.3,4.171066]
[1719912874780,5.79901,3448.9,3448.8,0.03577789]
[1719912874993,5.79901,3448.9,3448.3,3.45332]
[1719912875300,2.89947,3448.9,3448.8,0.03580326]
[1719912875972,2.89947,3448.9,3448.3,3.45332]
[1719912876166,2.89947,3448.9,3448.8,0.03580326]
[1719912876366,2.89947,3448.9,3448.3,3.45332]
[1719912876576,2.89947,3448.9,3448.8,0.03580326]
[1719912876777,2.89947,3448.9,3448.3,3.45332]
[1719912876985,2.89947,3448.9,3448.8,0.03580326]
[1719912877191,5.79902,3448.9,3448.3,3.45332]
[1719912877485,5.79902,3448.9,3448.8,0.03580326]
[1719912877690,5.79902,3448.9,3448.3,3.45332]
[1719912877886,2.89947,3448.9,3448.8,0.03580326]
[1719912878110,2.89947,3448.9,3448.3,3.45332]
[1719912878111,5.79902,3448.9,3448.3,3.45332]
[1719912878309,2.89947,3448.9,3448.3,4.171066]
[1719912878519,2.89947,3448.9,3448.4,0.03580326]
[1719912879014,2.89947,3448.9,3448.5,0.03580326]
[1719912879183,5.79901,3448.9,3448.3,4.171066]
[1719912879380,5.79901,3448.9,3448.6,0.03580326]
[1719912879617,5.79901,3448.9,3448.4,0.7071206]
[1719912879829,5.79901,3448.9,3448.7,0.03580326]
[1719912879993,5.79901,3448.9,3448.3,3.45332]
[1719912880194,5.79901,3448.9,3448.8,0.03580326]
[1719912880415,5.79901,3448.9,3448.3,3.45332]
[1719912880631,2.89947,3448.9,3448.8,0.03580326]
[1719912880828,2.89936,3449.1,3448.4,2.89989]
[1719912881026,2.89936,3449.1,3448.8,0.03580326]
[1719912881027,5.79875,3449.1,3448.8,0.03580326]
[1719912881184,2.89939,3449.0,3448.5,0.635321]
[1719912881383,2.89939,3449.0,3448.9,0.03580326]
[1719912881691,2.89939,3449.0,3448.6,0.4912611]
[1719912881889,2.89939,3449.0,3448.9,0.03580326]
[1719912882090,2.89939,3449.0,3448.6,0.4912611]
[1719912882682,2.89939,3449.0,3448.7,0.03580326]
[1719912885785,2.89939,3449.0,3448.4,2.89989]
[1719912886014,2.89939,3449.0,3448.8,0.03580326]
[1719912886224,2.89939,3449.0,3448.4,2.89989]
[1719912886425,2.89939,3449.0,3448.9,0.03576383]
[1719912886595,2.89939,3449.0,3448.4,2.89989]
[1719912886801,2.89939,3449.0,3448.4,3.617624]
[1719912887016,2.89939,3449.0,3448.5,0.03576383]
[1719912890959,2.89947,3448.9,3448.5,0.03576383]
[1719912891812,2.89947,3448.9,3448.6,0.0345717]
[1719912892206,2.89947,3448.9,3448.3,6.45333]
[1719912892418,2.89947,3448.9,3448.7,0.03341931]
[1719912892632,2.89947,3448.9,3448.3,6.45333]
[1719912892834,2.89947,3448.9,3448.8,0.03341931]
[1719912893016,2.89947,3448.9,3448.3,6.45333]
[1719912893431,2.89947,3448.9,3448.4,0.03341931]
[1719912893836,2.89947,3448.9,3448.3,6.45333]
[1719912894141,2.89947,3448.9,3448.3,7.471063]
[1719912894535,2.89947,3448.9,3448.4,0.03341931]
[1719912895052,2.89947,3448.9,3448.5,0.03341931]
[1719912895343,2.89947,3448.9,3448.4,2.89989]
[1719912895540,2.89947,3448.9,3448.6,0.03341931]
[1719912895740,2.89947,3448.9,3448.4,2.89989]
[1719912895945,2.89947,3448.9,3448.7,0.03341931]
[1719912896335,2.89947,3448.9,3448.8,0.03341931]
[1719912897045,2.89947,3448.9,3448.4,2.89989]
[1719912897221,2.89947,3448.9,3448.8,0.03341931]
[1719912898442,2.89947,3448.9,3448.4,2.89989]
[1719912898646,2.89947,3448.9,3448.8,0.03341931]
[1719912899132,2.89947,3448.9,3448.4,3.917619]
[1719912899856,2.89947,3448.9,3448.5,0.03341931]
[1719912900414,2.89941,3449.0,3448.5,0.03341931]
[1719912900714,2.89941,3449.0,3448.5,1.15626314]
[1719912903321,2.89941,3449.0,3448.5,0.03341931]
[1719912904361,5.79887,3449.0,3448.5,0.03341931]
[1719912905562,2.89941,3449.0,3448.5,0.03341931]
[1719912908274,5.79887,3449.0,3448.5,0.03341931]
[1719912910475,2.89941,3449.0,3448.5,0.03341931]
[1719912911277,2.89941,3449.0,3448.6,0.64867093]
[1719912911691,2.89941,3449.0,3448.7,0.03343338]
[1719912912249,2.89941,3449.0,3448.4,5.79972]
[1719912912445,2.89941,3449.0,3448.8,0.03343338]
[1719912912650,2.89941,3449.0,3448.4,2.89983]
[1719912912991,2.89941,3449.0,3448.4,3.24043817]
[1719912913191,2.89941,3449.0,3448.5,0.03343621]
[1719912914528,5.79887,3449.0,3448.5,0.03343621]
[1719912914874,6.62287,3449.0,3448.5,0.03343621]
[1719912915718,2.89948,3448.9,3448.5,0.03343621]
[1719912916208,2.89948,3448.9,3448.6,0.03343621]
[1719912916574,2.89948,3448.9,3448.3,6.45336]
[1719912916797,2.89948,3448.9,3448.4,0.03343621]
[1719912917001,2.89948,3448.9,3448.3,7.471098]
[1719912917176,2.89948,3448.9,3448.4,0.03343621]
[1719912917378,2.89948,3448.9,3448.3,7.471098]
[1719912917607,2.89948,3448.9,3448.4,0.03343621]
[1719912917904,2.89948,3448.9,3448.3,7.471098]
[1719912918106,2.89948,3448.9,3448.5,0.03343621]
[1719912918413,2.89948,3448.9,3448.6,0.03343621]
[1719912918906,2.89948,3448.9,3448.3,7.471098]
[1719912919105,2.89948,3448.9,3448.7,0.03343621]
[1719912919404,2.89948,3448.9,3448.8,0.03343621]
[1719912919608,2.89948,3448.9,3448.3,6.45336]
[1719912919812,2.89948,3448.9,3448.4,0.03343621]
[1719912920109,2.89948,3448.9,3448.3,7.471098]
[1719912920311,2.89948,3448.9,3448.5,0.03343621]
[1719912920489,2.89948,3448.9,3448.3,7.471098]
[1719912920677,2.89948,3448.9,3448.6,0.03343621]
[1719912920872,2.89948,3448.9,3448.3,7.471098]
[1719912921116,2.89948,3448.9,3448.7,0.03343621]
[1719912921291,2.89948,3448.9,3448.3,6.45336]
[1719912921489,2.89948,3448.9,3448.8,0.03343621]
[1719912921691,2.89948,3448.9,3448.3,6.45336]
[1719912921905,2.89948,3448.9,3448.8,0.03343621]
[1719912922109,2.89948,3448.9,3448.3,6.45336]
[1719912922310,2.89948,3448.9,3448.8,0.03343621]
[1719912922796,2.89948,3448.9,3448.3,6.45336]
[1719912922981,2.89948,3448.9,3448.4,0.03343621]
[1719912923179,2.89948,3448.9,3448.3,6.45336]
[1719912923405,2.89948,3448.9,3448.4,0.03343621]
[1719912923605,2.89948,3448.9,3448.3,6.45336]
[1719912923879,2.89948,3448.9,3448.4,0.03343621]
[1719912924306,2.89948,3448.9,3448.3,7.471098]
[1719912924524,2.89948,3448.9,3448.5,0.03343621]
[1719912924787,2.89948,3448.9,3448.6,0.03343621]
[1719912925007,2.89948,3448.9,3448.3,7.471098]
[1719912925183,2.89948,3448.9,3448.4,0.03343621]
[1719912925507,2.89948,3448.9,3448.4,1.28936681]
[1719912925701,2.89948,3448.9,3448.5,0.03343621]
[1719912928281,3.72339,3449.0,3448.5,0.03343621]
[1719912929285,10.30883,3449.7,3448.7,3.45297]
[1719912929485,0.824,3449.4,3448.8,3.25392004]
[1719912929725,0.824,3449.4,3448.8,3.28735062]
[1719912930082,2.14451668,3449.6,3449.2,2.89921]
[1719912930312,5.25575,3449.9,3449.2,2.89921]
[1719912930313,6.07975,3449.9,3449.2,2.89921]
[1719912930495,8.97846,3449.9,3449.3,0.03345876]
[1719912930705,6.07975,3449.9,3449.3,0.03345876]
[1719912931898,6.07975,3449.9,3449.3,0.087626]
[1719912936024,2.8985,3450.1,3449.3,3.6306816]
[1719912936224,0.824,3450.0,3449.4,0.5534]
[1719912936629,0.824,3450.0,3449.5,0.0875612]
[1719912937029,0.824,3450.0,3449.4,0.5534]
[1719912937337,0.824,3450.0,3449.6,0.0875612]
[1719912937496,0.824,3450.0,3449.4,1.34116557]
[1719912937701,3.72257,3450.0,3449.7,0.0875612]
[1719912937942,3.72257,3450.0,3449.4,4.24021557]
[1719912938410,3.72257,3450.0,3449.5,0.0875612]
[1719912938740,3.72257,3450.0,3449.4,4.24021557]
[1719912938914,3.72257,3450.0,3449.6,0.0875612]
[1719912939098,3.72257,3450.0,3449.5,0.08753584]
[1719912939298,3.72257,3450.0,3449.5,0.71392756]
[1719912939494,0.824,3450.0,3449.6,0.08753584]
[1719912940633,0.824,3450.1,3449.7,0.08753584]
[1719912940844,0.824,3450.1,3449.7,0.73140442]
[1719912943424,8.24644,3450.4,3449.7,0.73140442]
[1719912943627,0.824,3450.1,3449.7,0.73140442]
[1719912944251,0.824,3450.1,3449.7,0.08753584]
[1719912946559,7.41,3450.6,3449.7,2.98628584]
[1719912946560,10.30807,3450.6,3449.7,2.98628584]
[1719912946766,0.824,3450.2,3449.8,3.45204]
[1719912947108,0.824,3450.2,3449.9,0.08734141]
[1719912947241,0.824,3450.2,3449.9,2.98596141]
[1719912948268,8.39561,3450.8,3449.9,2.98596141]
[1719912948474,8.39561,3450.8,3450.2,2.89837]
[1719912948475,2.4977,3450.8,3450.2,2.89837]
[1719912948673,0.824,3450.6,3450.2,2.89837]
[1719912948977,2.4977,3450.8,3450.3,0.0872738]
[1719912949455,0.824,3450.7,3450.4,0.08727098]
[1719912949855,0.824,3450.7,3450.2,2.89837]
[1719912950060,0.824,3450.7,3450.5,0.08727098]
[1719912950224,0.824,3450.7,3450.2,2.89837]
[1719912950421,0.824,3450.7,3450.3,0.08727098]
[1719912950626,0.824,3450.7,3450.2,2.89837]
[1719912950839,0.824,3450.7,3450.3,0.08727098]
[1719912951324,0.824,3450.7,3450.2,2.89837]
[1719912951560,0.824,3450.7,3450.4,0.08727098]
[1719912951757,0.824,3450.5,3450.2,0.579675]
[1719912952056,0.824,3450.5,3449.9,2.89856]
[1719912952977,0.824,3450.5,3450.1,2.89845]
[1719912953535,2.89797,3450.7,3450.1,2.89845]
[1719912953873,0.824,3450.5,3450.1,2.89845]
[1719912954073,0.824,3450.5,3450.2,0.579701]
[1719912954567,2.89797,3450.7,3450.2,0.579701]
[1719912954770,0.824,3450.6,3450.2,0.579701]
[1719912957075,0.824,3450.6,3450.1,2.89845]
[1719912957239,0.824,3450.4,3450.1,2.89845]
[1719912959475,0.33857,3450.4,3450.1,2.89845]
[1719912960072,0.824,3450.6,3450.1,2.89845]
[1719912962181,2.89797,3450.7,3450.1,2.89845]
[1719912962484,0.824,3450.6,3450.1,2.89845]
[1719912963283,3.72204,3450.6,3450.1,2.89845]
[1719912965499,3.72204,3450.6,3449.8,1.1830259]
[1719912965500,0.824,3450.4,3449.8,4.0817359]
[1719912965707,0.824,3450.4,3449.8,4.0816959]
[1719912966002,0.824,3450.4,3449.9,0.49512507]
[1719912966346,0.824,3450.4,3449.9,3.39373507]
[1719912975193,5.21935,3450.5,3449.9,3.4517018]
[1719912986515,2.3212,3450.5,3450.0,2.89853]
[1719912986906,2.3212,3450.5,3450.1,0.0869386]
[1719912987414,2.3212,3450.5,3450.1,0.84026868]
[1719912987790,2.3212,3450.5,3450.1,3.73870868]
[1719912992092,2.3212,3450.5,3450.1,0.84026868]
[1719912992303,2.3212,3450.5,3450.1,0.0869386]
[1719912993038,3.1452,3450.5,3450.1,0.0869386]
[1719912999314,2.3212,3450.5,3450.1,0.0869386]
[1719912999509,5.34161,3450.8,3450.1,0.14490276]
[1719912999859,0.50593347,3450.7,3450.2,0.40049524]
[1719913000030,6.16561,3450.8,3450.3,0.08689355]
[1719913000344,0.50592279,3450.7,3450.2,0.40049524]
[1719913000546,6.16561,3450.8,3450.4,0.08689355]
[1719913000750,6.16561,3450.8,3450.3,0.68087294]
[1719913000751,0.5058915,3450.7,3450.2,3.29886524]
[1719913000918,6.16561,3450.8,3450.5,0.08689355]
[1719913001118,6.16561,3450.8,3450.2,3.29886524]
[1719913001336,0.50592064,3450.7,3450.6,0.08689355]
[1719913001931,0.50592064,3450.7,3450.2,2.89837]
[1719913002133,6.16561,3450.8,3450.6,0.08689355]
[1719913002337,5.34161,3450.8,3450.2,2.89837]
[1719913002533,6.16561,3450.8,3450.7,0.08689355]
[1719913002854,6.67150965,3450.8,3450.7,0.08686539]
[1719913003155,6.67150965,3450.8,3450.2,2.89837]
[1719913003357,3.2677,3450.8,3450.7,0.08686539]
[1719913003518,3.77354628,3450.8,3450.2,2.89837]
[1719913003720,3.2677,3450.8,3450.7,0.08686539]
[1719913003959,3.77356351,3450.8,3450.2,2.89837]
[1719913004249,3.2677,3450.8,3450.7,0.08686539]
[1719913004621,3.77356817,3450.8,3450.2,2.89837]
[1719913004818,3.2677,3450.8,3450.3,0.08686821]
[1719913005267,3.2677,3450.8,3450.4,0.08686821]
[1719913005624,3.2677,3450.8,3450.2,2.89837]
[1719913005931,3.2677,3450.8,3450.2,3.53919142]
[1719913006120,3.2677,3450.8,3450.3,0.08686821]
[1719913006622,3.2677,3450.8,3450.4,0.08682876]
[1719913006822,7.41,3451.0,3450.4,0.08682876]
[1719913006823,7.41,3451.0,3450.4,0.64022876]
[1719913007025,7.41,3451.0,3450.5,3.40423325]
[1719913007240,7.41,3451.0,3450.5,3.49106201]
[1719913008053,7.41,3451.0,3450.6,2.89802]
[1719913008252,7.41,3451.0,3450.7,0.08682313]
[1719913010255,7.41,3451.0,3450.7,2.98477313]
[1719913010424,7.41,3451.0,3450.7,3.67901377]
[1719913012478,3.0996,3451.2,3450.7,3.67901377]
[1719913013056,3.0996,3451.2,3450.7,2.98477313]
[1719913014873,0.824,3451.0,3450.7,2.98477313]
[1719913018566,3.0996,3451.2,3450.7,2.98477313]
[1719913023981,2.4453,3451.3,3450.9,2.89775]
[1719913024286,0.824,3451.1,3450.9,2.89775]
[1719913024488,0.824,3451.1,3451.0,0.08234043]
[1719913025589,0.824,3451.1,3450.8,2.89786]
[1719913025765,0.824,3451.1,3451.0,0.08233198]
[1719913025966,0.824,3451.1,3450.8,2.89786]
[1719913026165,0.824,3451.1,3451.0,0.08233198]
[1719913026475,0.824,3451.1,3450.8,2.89786]
[1719913027166,0.824,3451.1,3450.9,0.08233198]
[1719913031194,2.4954,3451.0,3450.9,0.08233198]
[1719913031401,2.4954,3451.0,3450.5,2.8981]
[1719913031688,2.4954,3451.0,3450.9,0.08233199]
[1719913031893,2.4954,3451.0,3450.5,2.8981]
[1719913032097,2.4954,3451.0,3450.5,3.477734]
[1719913032497,2.4954,3451.0,3450.6,0.08233199]
[1719913037414,5.39311,3451.0,3450.6,0.08233199]
[1719913037932,5.20903,3450.8,3450.1,2.89843]
[1719913038080,5.20903,3450.8,3450.7,0.08183199]
[1719913038487,5.20903,3450.8,3450.2,3.0]
[1719913039014,5.20903,3450.8,3450.3,0.08183199]
[1719913039212,5.20903,3450.8,3450.2,3.0]
[1719913039404,5.20903,3450.8,3450.4,0.08183199]
[1719913039618,5.20903,3450.8,3450.2,3.0]
[1719913039817,5.20903,3450.8,3450.5,0.08183199]
[1719913040020,5.20903,3450.8,3450.2,3.0]
[1719913040180,5.20903,3450.8,3450.6,0.08183199]
[1719913040381,5.20903,3450.8,3450.2,3.0]
[1719913040581,5.20903,3450.8,3450.7,0.08183199]
[1719913040818,5.20903,3450.8,3450.2,3.0]
[1719913041116,5.20903,3450.8,3450.7,0.08183199]
[1719913041716,5.20903,3450.8,3450.2,3.0]
[1719913042334,5.20903,3450.8,3450.3,0.08183199]
[1719913042537,5.20903,3450.8,3450.2,3.0]
[1719913042901,5.20903,3450.8,3450.4,0.08183199]
[1719913043104,5.20903,3450.8,3450.2,3.0]
[1719913043304,5.20903,3450.8,3450.5,0.08189393]
[1719913043503,5.20903,3450.8,3450.2,3.0]
[1719913043720,5.20903,3450.8,3450.3,0.58984]
[1719913044232,5.20903,3450.8,3450.4,0.08189393]
[1719913054108,2.3111,3450.8,3450.4,0.08189393]
[1719913056904,2.3111,3450.8,3450.4,2.98009393]
[1719913057445,2.89769,3451.1,3450.4,2.98004393]
[1719913057446,2.484,3451.1,3450.4,2.98004393]
[1719913057625,5.38163,3451.1,3450.5,1.00795843]
[1719913057825,5.38163,3451.1,3450.5,1.08988052]
[1719913058243,2.484,3451.1,3450.6,2.89799]
[1719913058414,2.484,3451.1,3450.7,2.89796]
[1719913058614,2.484,3451.1,3450.7,2.97988209]
[1719913058824,2.484,3451.1,3450.7,3.66846514]
[1719913064875,2.3004,3451.4,3451.0,2.89766]
[1719913065168,2.3004,3451.4,3451.1,0.08185734]
[1719913066987,7.41,3451.6,3451.1,2.97946734]
[1719913067186,8.234,3451.6,3451.1,2.97946734]
[1719913069181,0.824,3451.7,3451.2,2.89753]
[1719913069395,0.824,3451.7,3451.2,2.97926347]
[1719913070073,3.72114,3451.7,3451.2,2.97926347]
[1719913070280,2.4552,3451.6,3451.2,0.08173347]
[1719913075004,0.824,3451.3,3451.2,0.08173347]
[1719913075313,3.1724,3451.3,3450.7,5.89794]
[1719913075513,3.1724,3451.3,3451.2,0.08167154]
[1719913075714,3.1724,3451.3,3450.7,5.89794]
[1719913075914,3.1724,3451.3,3451.2,0.08167154]
[1719913076076,3.1724,3451.3,3450.7,5.89794]
[1719913076277,3.1724,3451.3,3451.2,0.08167154]
[1719913076478,3.1724,3451.3,3450.7,5.89794]
[1719913076671,3.1724,3451.3,3451.2,0.08167154]
[1719913076873,3.1724,3451.3,3450.7,5.89794]
[1719913077073,3.1724,3451.3,3451.2,0.08167154]
[1719913077274,6.06986,3451.3,3450.7,5.89794]
[1719913077489,6.06986,3451.3,3451.2,0.08167154]
[1719913077699,6.06986,3451.3,3450.7,5.89794]
[1719913077956,6.06986,3451.3,3451.2,0.08167154]
[1719913078441,6.06986,3451.3,3450.7,5.89794]
[1719913078596,6.06986,3451.3,3451.2,0.08167154]
[1719913078936,6.06986,3451.3,3450.7,5.89794]
[1719913079237,5.24586,3451.3,3450.7,5.89794]
[1719913079423,5.24586,3451.3,3450.8,0.08167154]
[1719913081539,2.89746,3451.3,3450.8,0.08167154]
[1719913083894,2.89746,3451.3,3450.8,0.13962322]
[1719913084422,2.89746,3451.3,3450.8,0.08167154]
[1719913089899,5.36656,3451.3,3450.8,0.08167154]
[1719913090104,0.824,3451.5,3450.8,0.08167154]
[1719913090105,3.72179,3450.9,3450.8,0.08167154]
[1719913090336,6.20729,3450.9,3450.8,0.08167154]
[1719913090547,2.89788,3450.8,3450.1,3.0]
[1719913090747,2.89788,3450.8,3450.0,2.89853]
[1719913090928,2.4855,3450.6,3450.2,0.0789394]
[1719913091243,2.4855,3450.6,3450.0,3.533589]
[1719913091600,2.4855,3450.6,3450.1,0.0789394]
[1719913092021,2.4855,3450.6,3450.1,2.9773894]
[1719913094127,2.4855,3450.6,3450.1,0.0789394]
[1719913094344,2.4855,3450.6,3450.1,3.0789394]
[1719913096436,5.38354,3450.6,3450.1,3.0789394]
[1719913096644,5.38354,3450.6,3450.1,0.0789394]
[1719913096645,2.89816,3450.5,3450.1,0.0789394]
[1719913097154,2.89829,3450.4,3450.1,0.0789394]
[1719913097353,2.89829,3450.4,3449.7,3.0]
[1719913097646,2.89829,3450.4,3449.8,0.645224]
[1719913097856,2.89829,3450.4,3449.8,0.72425323]
[1719913098448,3.72216,3450.5,3449.8,0.72425323]
[1719913098449,2.89829,3450.3,3449.8,0.72425323]
[1719913101814,2.4302,3450.2,3449.8,0.07902923]
[1719913102020,2.89847,3450.1,3449.8,0.07902923]
[1719913102220,2.89847,3450.1,3449.5,6.45236]
[1719913102432,2.89847,3450.1,3449.9,0.07926226]
[1719913102752,2.89847,3450.1,3449.5,6.45236]
[1719913102927,2.89847,3450.1,3450.0,0.07941389]
[1719913103126,2.89847,3450.1,3449.5,6.45236]
[1719913103531,2.89847,3450.1,3449.6,0.07941389]
[1719913104455,2.8967955,3450.1,3449.6,0.07941389]
[1719913106357,2.89855,3450.0,3449.6,0.07941389]
[1719913106529,2.39855,3450.0,3449.6,0.07941389]
[1719913109859,3.7207955,3450.1,3449.6,0.07941389]
[1719913110039,2.89855,3450.0,3449.6,0.07941389]
[1719913110756,2.4672,3449.9,3449.4,3.0]
[1719913110928,2.4672,3449.9,3449.7,0.07947567]
[1719913111127,2.4672,3449.9,3449.4,3.0]
[1719913111337,2.4672,3449.9,3449.8,0.07959364]
[1719913111830,2.4672,3449.9,3449.4,3.0]
[1719913112036,2.4672,3449.9,3449.8,0.07959364]
[1719913112366,2.4672,3449.9,3449.4,3.727653]
[1719913112528,5.36583,3449.9,3449.8,0.07959364]
[1719913112727,2.89876,3449.8,3449.3,3.0]
[1719913114660,3.72281,3449.7,3449.1,3.0]
[1719913114971,3.47281,3449.7,3449.0,3.5534]
[1719913115151,3.47281,3449.7,3449.0,4.32740293]
[1719913115330,2.89889,3449.6,3449.0,4.32740293]
[1719913115531,2.89889,3449.6,3449.0,3.5534]
[1719913116053,2.89889,3449.6,3449.1,0.07959364]
[1719913116432,2.89889,3449.6,3449.0,3.5534]
[1719913116629,2.89889,3449.6,3449.2,0.07959364]
[1719913116832,2.2688,3449.5,3449.0,3.0]
[1719913117028,2.2688,3449.5,3449.3,0.07959364]
[1719913117237,2.2688,3449.5,3449.0,3.935238]
[1719913117436,2.2688,3449.5,3449.4,0.07959364]
[1719913117767,2.2688,3449.5,3449.0,3.935238]
[1719913118389,2.2688,3449.5,3449.1,0.07959364]
[1719913118569,2.2688,3449.5,3449.1,1.1987148]
[1719913118758,2.2688,3449.5,3449.1,1.11912116]
[1719913118953,2.2688,3449.5,3449.2,0.0777603]
[1719913121192,6.09516,3449.8,3449.2,0.0777603]
[1719913122478,2.89881,3449.7,3449.2,0.0777603]
[1719913122651,2.89881,3449.7,3449.2,1.07731445]
[1719913132192,2.89881,3449.7,3449.2,3.97651445]
[1719913132496,3.1964,3449.8,3449.2,3.97651445]
[1719913133194,3.1964,3449.8,3449.2,6.87568445]
[1719913133599,7.41,3450.1,3449.3,0.05797809]
[1719913133800,7.41,3450.1,3449.7,2.89878]
[1719913134382,7.41,3450.1,3449.8,2.97660637]
[1719913134595,0.824,3450.3,3449.8,2.97660637]
[1719913137403,7.41,3450.6,3449.8,2.97660637]
[1719913137602,7.41,3450.6,3450.0,2.89853]
[1719913137603,8.234,3450.6,3450.0,2.89853]
[1719913137790,11.13205,3450.6,3450.1,0.07787266]
[1719913137990,3.72205,3450.6,3450.1,0.07787266]
[1719913139176,0.824,3450.4,3450.1,0.07787266]
[1719913141519,0.824,3450.4,3450.1,2.97632266]
[1719913142583,2.89805,3450.6,3450.1,2.97632266]
[1719913142779,0.824,3450.4,3450.1,2.97632266]
[1719913148216,8.06303,3450.8,3450.1,2.97632266]
[1719913148385,0.824,3450.5,3450.1,2.97632266]
[1719913151420,0.796,3450.5,3450.1,2.97632266]
[1719913154318,0.796,3450.5,3450.1,5.87473266]
[1719913154748,0.796,3450.5,3450.2,2.89838]
[1719913154899,5.1651,3450.8,3450.2,2.89838]
[1719913155102,5.1651,3450.8,3450.3,0.07765074]
[1719913155103,0.824,3450.6,3450.3,0.07765074]
[1719913155631,0.824,3450.6,3450.2,2.89838]
[1719913155632,3.1201,3450.4,3449.9,2.89858]
[1719913155933,3.1201,3450.4,3449.9,3.533633]
[1719913156134,3.1201,3450.4,3449.9,2.89856]
[1719913156334,2.2961,3450.4,3450.1,2.89846]
[1719913156531,0.824,3450.5,3450.1,2.89846]
[1719913157894,7.41,3451.0,3450.1,2.89846]
[1719913157895,5.28959,3450.9,3450.2,2.89837]
[1719913158095,0.824,3450.8,3450.2,3.533412]
[1719913160747,0.824,3450.6,3450.2,3.533412]
[1719913161054,0.824,3450.6,3450.3,0.07766479]
[1719913161200,0.824,3450.6,3450.2,2.89837]
[1719913161401,0.824,3450.6,3450.3,0.07766479]
[1719913161703,0.824,3450.6,3450.2,2.89837]
[1719913161939,0.824,3450.6,3450.4,0.07766479]
[1719913162249,2.2884,3450.5,3449.8,2.89866]
[1719913162464,0.824,3450.3,3449.8,2.89865]
[1719913164357,5.18653,3450.5,3449.8,2.89865]
[1719913164560,0.824,3450.3,3449.8,2.89865]
[1719913164769,0.824,3450.3,3449.8,3.533742]
[1719913165447,0.824,3450.4,3449.8,3.533742]
[1719913168651,3.72221,3450.4,3449.8,3.533742]
[1719913169180,0.824,3450.4,3449.6,2.89887]
[1719913169485,0.824,3449.8,3449.4,3.0]
[1719913169687,5.22637,3450.1,3449.4,3.0]
[1719913169688,0.824,3450.0,3449.4,3.0]
[1719913169867,0.824,3450.0,3449.4,1.017573]
[1719913169868,3.72257,3450.0,3449.4,1.017573]
[1719913170048,3.72257,3450.0,3449.3,2.89912]
[1719913170253,3.72257,3450.0,3449.4,0.07768445]
[1719913172494,7.41,3450.3,3449.7,0.5534]
[1719913172654,10.30837,3450.3,3449.7,0.5534]
[1719913172859,10.30836,3450.3,3449.8,0.07783332]
[1719913173157,10.30836,3450.3,3449.7,1.27869845]
[1719913173368,10.30836,3450.3,3449.9,0.07783332]
[1719913173570,10.30836,3450.3,3449.7,1.27869845]
[1719913173807,2.89836,3450.3,3450.0,0.07783332]
[1719913173990,2.89836,3450.3,3449.7,1.27869845]
[1719913176487,0.824,3450.3,3449.8,3.3222642]
[1719913176786,0.824,3450.3,3449.8,3.40005819]
[1719913180316,5.29362,3450.1,3449.8,0.07779399]
[1719913180520,5.29362,3450.1,3449.3,6.35155]
[1719913180521,0.824,3449.9,3449.3,6.35155]
[1719913181590,2.89855,3450.0,3449.4,3.616613]
[1719913182000,5.29356,3450.1,3449.4,3.616613]
[1719913183488,2.89855,3450.0,3449.4,3.616613]
[1719913186008,3.72264,3449.9,3449.4,0.717573]
[1719913186197,3.72264,3449.9,3449.2,2.89921]
[1719913187430,2.89864,3449.9,3449.2,2.89921]
[1719913187965,3.72264,3449.9,3449.2,2.89921]
[1719913191069,3.72264,3449.9,3449.3,0.07784175]
[1719913192751,2.89872,3449.8,3449.3,0.07784175]
[1719913193160,2.89872,3449.8,3449.2,2.89921]
[1719913193361,2.89872,3449.8,3449.4,0.07793445]
[1719913193565,2.89872,3449.8,3449.2,2.89921]
[1719913193740,2.89872,3449.8,3449.5,0.07793445]
[1719913194059,2.89907,3449.4,3448.7,0.5534]
[1719913194347,3.72321,3449.3,3448.4,3.45328]
[1719913194877,2.89925,3449.2,3448.4,3.45328]
[1719913195474,2.89925,3449.2,3448.5,3.0]
[1719913196308,2.89911,3449.4,3448.6,2.89971]
[1719913196573,2.89911,3449.4,3448.6,3.72371]
[1719913197787,2.89919,3449.3,3448.6,3.72371]
[1719913198656,2.89881,3449.7,3448.8,0.824]
[1719913198864,4.38247679,3449.6,3448.9,3.33297288]
[1719913199050,2.89889,3449.6,3448.9,3.33297288]
[1719913202779,2.89898,3449.5,3448.9,0.43350288]
[1719913202963,2.89898,3449.5,3448.7,3.45296]
[1719913202964,0.824,3449.3,3448.7,3.45296]
[1719913203691,0.824,3449.3,3448.8,2.89951]
[1719913205070,5.25851,3449.7,3448.9,2.89947]
[1719913205272,7.41,3449.8,3448.5,3.727722]
[1719913205273,7.41,3449.8,3449.1,0.824]
[1719913205470,7.41,3449.8,3449.2,2.8992]
[1719913205997,7.41,3449.8,3449.3,0.07833907]
[1719913206295,7.41,3449.8,3449.2,2.8992]
[1719913206462,7.41,3449.8,3449.4,0.07833907]
[1719913206662,6.08225,3450.0,3449.2,2.8992]
[1719913206863,6.08225,3450.0,3449.5,0.07833907]
[1719913207103,1.48336221,3449.9,3449.3,3.45253]
[1719913207283,3.72255,3450.0,3449.6,0.07833907]
[1719913207456,1.48336153,3449.9,3449.3,3.45253]
[1719913207663,3.72255,3450.0,3449.7,0.07833907]
[1719913207965,3.72255,3450.0,3449.8,0.07833907]
[1719913208197,4.38201136,3449.9,3449.3,0.5534]
[1719913208384,0.824,3449.8,3449.3,0.5534]
[1719913208859,2.89863,3449.9,3449.3,0.5534]
[1719913209386,2.89863,3449.9,3449.3,3.45253]